fUSD/lending_fUSD_20250123
["ID","MTS","AMOUNT","RATE_DAILY","PERIOD"]
[350091975,1737619838233,-500.0,0.00019099,2]
[350091976,1737619838243,-804.61,0.00019099,2]
[350091977,1737619838253,-500.0,0.00019099,2]
[350091978,1737619838263,-3467.04,0.00019099,2]
[350091979,1737619838273,-745.5,0.00019099,2]
[350091980,1737619838282,-500.0,0.00019099,2]
[350091981,1737619838291,-500.0,0.00019099,2]
[350091982,1737619838301,-1799.45,0.00019099,2]
[350091983,1737619838310,-644.46,0.00019099,2]
[350091984,1737619838319,-500.0,0.00019099,2]
[350091985,1737619838328,-500.0,0.00019099,2]
[350091986,1737619838338,-576.65,0.00019099,2]
[350091987,1737619838348,-500.0,0.00019099,2]
[350091988,1737619838357,-279.88824265,0.00019099,2]
[350091989,1737619838366,-500.0,0.00019099,2]
[350091990,1737619838375,-500.0,0.00019099,2]
[350091991,1737619838384,-884.58,0.00019099,2]
[350091992,1737619838393,-500.0,0.00019099,2]
[350091993,1737619838402,-500.0,0.00019099,2]
[350091994,1737619838412,-1362.12,0.00019099,2]
[350091995,1737619838421,-500.0,0.00019099,2]
[350091996,1737619838430,-5796.57,0.00019099,2]
[350091997,1737619838439,-547.09494276,0.00019099,2]
[350091998,1737619838448,-500.0,0.00019099,2]
[350091999,1737619838457,-500.0,0.00019099,2]
[350092000,1737619838467,-500.0,0.00019099,2]
[350092001,1737619838476,-500.0,0.00019099,2]
[350092002,1737619838485,-500.0,0.00019099,2]
[350092003,1737619838493,-500.0,0.00019099,2]
[350092004,1737619838502,-500.0,0.00019099,2]
[350092005,1737619838512,-500.0,0.00019099,2]
[350092006,1737619838521,-500.0,0.00019099,2]
[350092007,1737619838531,-500.0,0.00019099,2]
[350092008,1737619838540,-649.61,0.00019099,2]
[350092009,1737619838549,-645.78,0.00019099,2]
[350092010,1737619838558,-545.31,0.00019099,2]
[350092011,1737619838567,-500.0,0.00019099,2]
[350092012,1737619838576,-961.43,0.00019099,2]
[350092013,1737619838586,-500.0,0.00019099,2]
[350092014,1737619838595,-1139.56,0.00019099,2]
[350092015,1737619838604,-562.5,0.00019099,2]
[350092016,1737619838614,-500.0,0.00019099,2]
[350092017,1737619838623,-1512.11,0.00019099,2]
[350092018,1737619838633,-3860.18,0.00019099,2]
[350092019,1737619838643,-4515.02197867,0.000191,2]
[350092020,1737619838652,-18788.70355,0.000191,2]
[350092021,1737619838661,-1264.2105,0.000191,2]
[350092022,1737619838671,-500.0,0.000191,2]
[350092023,1737619838680,-36184.3016,0.000191,2]
[350092024,1737619838689,-2022.945661,0.000191,2]
[350092025,1737619838699,-1000.0,0.000191,2]
[350092026,1737619838708,-166.99897438,0.000191,2]
[350092027,1737619838718,-500.0,0.00019146,2]
[350092028,1737619838727,-1384.14764628,0.00019164,2]
[350092029,1737619838737,-206.82418592,0.00019173,2]
[350092030,1737619838746,-516.49423265,0.00019178,2]
[350092031,1737619838756,-500.0,0.00019178,2]
[350092032,1737619838765,-500.0,0.00019178,2]
[350092033,1737619838774,-500.0,0.00019178,2]
[350092034,1737619838783,-500.0,0.00019178,2]
[350092035,1737619838793,-500.0,0.00019178,2]
[350092036,1737619838802,-500.0,0.00019178,2]
[350092037,1737619838812,-500.0,0.00019178,2]
[350092038,1737619838821,-644.41316812,0.00019178,2]
[350092039,1737619838830,-500.0,0.00019178,2]
[350092040,1737619838839,-500.0,0.00019178,2]
[350092041,1737619838848,-500.0,0.00019178,2]
[350092042,1737619838858,-500.0,0.00019178,2]
[350092043,1737619838867,-480.24916682,0.00019178,2]
[350092044,1737619838876,-500.0,0.00019178,2]
[350092045,1737619838885,-500.0,0.00019178,2]
[350092046,1737619838895,-500.0,0.00019178,2]
[350092047,1737619838904,-506.67506671,0.00019178,2]
[350092048,1737619838913,-500.0,0.00019178,2]
[350092049,1737619838922,-500.0,0.00019178,2]
[350092050,1737619838931,-507.99702394,0.00019178,2]
[350092051,1737619838940,-500.0,0.00019178,2]
[350092052,1737619838950,-509.8840608,0.00019178,2]
[350092053,1737619838960,-500.0,0.00019178,2]
[350092054,1737619838969,-500.0,0.00019178,2]
[350092055,1737619838980,-500.0,0.00019178,2]
[350092056,1737619838990,-551.66070285,0.00019178,2]
[350092057,1737619838999,-578.32927478,0.00019178,2]
[350092058,1737619839010,-500.0,0.00019178,2]
[350092059,1737619839019,-500.0,0.00019178,2]
[350092060,1737619839029,-500.0,0.00019178,2]
[350092061,1737619839039,-500.0,0.00019178,2]
[350092062,1737619839048,-500.0,0.00019178,2]
[350092063,1737619839058,-500.0,0.00019178,2]
[350092064,1737619839068,-716.86,0.00019178,2]
[350092065,1737619839077,-500.0,0.00019178,2]
[350092066,1737619839086,-1283.57,0.00019178,2]
[350092067,1737619839096,-500.0,0.00019178,2]
[350092068,1737619839105,-500.0,0.00019178,2]
[350092069,1737619839115,-500.0,0.00019178,2]
[350092070,1737619839126,-525.50437458,0.00019178,2]
[350092071,1737619839136,-500.0,0.00019178,2]
[350092072,1737619839145,-500.0,0.00019178,2]
[350092073,1737619839156,-500.0,0.00019178,2]
[350092074,1737619839167,-500.0,0.00019178,2]
[350092075,1737619839179,-507.76,0.00019178,2]
[350092076,1737619839189,-500.0,0.00019178,2]
[350092077,1737619839199,-500.0,0.00019178,2]
[350092078,1737619839209,-500.0,0.00019178,2]
[350092079,1737619839218,-506.67563647,0.00019178,2]
[350092080,1737619839227,-500.0,0.00019178,2]
[350092081,1737619839237,-500.0,0.00019178,2]
[350092082,1737619839248,-500.0,0.00019178,2]
[350092083,1737619839258,-500.0,0.00019178,2]
[350092084,1737619839268,-500.0,0.00019178,2]
[350092085,1737619839278,-500.0,0.00019178,2]
[350092086,1737619839287,-500.0,0.00019178,2]
[350092087,1737619839297,-500.0,0.00019178,2]
[350092088,1737619839308,-500.0,0.00019178,2]
[350092089,1737619839318,-500.0,0.00019178,2]
[350092090,1737619839329,-500.0,0.00019178,2]
[350092091,1737619839340,-500.0,0.00019178,2]
[350092092,1737619839350,-500.0,0.00019178,2]
[350092093,1737619839361,-500.0,0.00019178,2]
[350092094,1737619839371,-411.65618284,0.00019178,2]
[350092095,1737619839382,-612.6911928,0.00019178,2]
[350092096,1737619839391,-500.0,0.00019178,2]
[350092097,1737619839401,-500.0,0.00019178,2]
[350092098,1737619839411,-500.0,0.00019178,2]
[350092099,1737619839421,-427.52964,0.00019178,2]
[350092100,1737619839432,-500.0,0.00019178,2]
[350092101,1737619839442,-500.0,0.00019178,2]
[350092102,1737619839451,-500.0,0.00019178,2]
[350092103,1737619839460,-500.0,0.00019178,2]
[350092104,1737619839470,-500.0,0.00019178,2]
[350092105,1737619839480,-497.2644259,0.00019178,2]
[350092106,1737619839490,-500.0,0.00019178,2]
[350092107,1737619839500,-500.0,0.00019178,2]
[350092108,1737619839510,-500.0,0.00019178,2]
[350092109,1737619839521,-500.0,0.00019178,2]
[350092110,1737619839532,-500.0,0.00019178,2]
[350092111,1737619839541,-500.0,0.00019178,2]
[350092112,1737619839550,-500.0,0.00019178,2]
[350092113,1737619839559,-403.42768,0.00019178,2]
[350092114,1737619839575,-500.0,0.00019178,2]
[350092115,1737619839586,-500.0,0.00019178,2]
[350092116,1737619839595,-500.0,0.00019178,2]
[350092117,1737619839604,-570.97,0.00019178,2]
[350092118,1737619839613,-367.11,0.00019178,2]
[350092119,1737619839623,-500.0,0.00019178,2]
[350092120,1737619839632,-500.0,0.00019178,2]
[350092121,1737619839641,-500.0,0.00019178,2]
[350092122,1737619839651,-500.0,0.00019178,2]
[350092123,1737619839659,-500.0,0.00019178,2]
[350092124,1737619839669,-500.0,0.00019178,2]
[350092125,1737619839678,-500.0,0.00019178,2]
[350092126,1737619839687,-500.0,0.00019178,2]
[350092127,1737619839696,-563.54,0.00019178,2]
[350092128,1737619839705,-500.0,0.00019178,2]
[350092129,1737619839715,-500.0,0.00019178,2]
[350092130,1737619839723,-500.0,0.00019178,2]
[350092131,1737619839733,-524.2,0.00019178,2]
[350092132,1737619839742,-500.0,0.00019178,2]
[350092133,1737619839751,-500.0,0.00019178,2]
[350092134,1737619839760,-548.87,0.00019178,2]
[350092135,1737619839771,-500.0,0.00019178,2]
[350092136,1737619839782,-500.0,0.00019178,2]
[350092137,1737619839792,-688.78,0.00019178,2]
[350092138,1737619839802,-500.0,0.00019178,2]
[350092139,1737619839811,-500.0,0.00019178,2]
[350092140,1737619839821,-587.13,0.00019178,2]
[350092141,1737619839831,-500.0,0.00019178,2]
[350092142,1737619839841,-500.0,0.00019178,2]
[350092143,1737619839850,-500.0,0.00019178,2]
[350092144,1737619839860,-500.0,0.00019178,2]
[350092145,1737619839869,-672.03,0.00019178,2]
[350092146,1737619839879,-500.0,0.00019178,2]
[350092147,1737619839888,-500.0,0.00019178,2]
[350092148,1737619839897,-500.0,0.00019178,2]
[350092149,1737619839907,-500.0,0.00019178,2]
[350092150,1737619839916,-505.33298701,0.00019178,2]
[350092151,1737619839926,-414.97307571,0.00019178,2]
[350092152,1737619839935,-500.0,0.00019178,2]
[350092153,1737619839945,-597.55,0.00019178,2]
[350092154,1737619839954,-500.0,0.00019178,2]
[350092155,1737619839964,-500.0,0.00019178,2]
[350092156,1737619839974,-500.0,0.00019178,2]
[350092157,1737619839984,-500.0,0.00019178,2]
[350092158,1737619839994,-635.48,0.00019178,2]
[350092159,1737619840003,-574.93,0.00019178,2]
[350092160,1737619840013,-617.69,0.00019178,2]
[350092161,1737619840022,-500.0,0.00019178,2]
[350092162,1737619840033,-587.62,0.00019178,2]
[350092163,1737619840042,-500.0,0.00019178,2]
[350092164,1737619840051,-500.0,0.00019178,2]
[350092165,1737619840060,-500.0,0.00019178,2]
[350092166,1737619840069,-500.0,0.00019178,2]
[350092167,1737619840079,-500.0,0.00019178,2]
[350092168,1737619840089,-500.0,0.00019178,2]
[350092169,1737619840099,-500.0,0.00019178,2]
[350092170,1737619840109,-528.71,0.00019178,2]
[350092171,1737619840120,-500.0,0.00019178,2]
[350092172,1737619840133,-504.73,0.00019178,2]
[350092173,1737619840143,-500.0,0.00019178,2]
[350092174,1737619840152,-500.0,0.00019178,2]
[350092175,1737619840162,-966.84,0.00019178,2]
[350092176,1737619840173,-500.0,0.00019178,2]
[350092177,1737619840182,-500.0,0.00019178,2]
[350092178,1737619840191,-2063.18259867,0.00019178,2]
[350092179,1737619840200,-151.0,0.00019178,2]
[350092180,1737619840210,-151.0,0.0001919,2]
[350092181,1737619840219,-329.1788757,0.0001919,2]
[350092182,1737619840229,-5572.20347,0.0001919,2]
[350092183,1737619840239,-23903.0763067,0.0001919,2]
[350092184,1737619840249,-1918.9998707,0.0001919,2]
[350092185,1737619840259,-706.07,0.00019197,2]
[350092186,1737619840269,-642.36,0.00019197,2]
[350092187,1737619840280,-1414.53,0.00019197,2]
[350092188,1737619840290,-500.0,0.00019197,2]
[350092189,1737619840299,-662.32,0.00019197,2]
[350092190,1737619840308,-903.08,0.00019197,2]
[350092191,1737619840319,-987.22,0.00019197,2]
[350092192,1737619840329,-500.0,0.00019197,2]
[350092193,1737619840339,-1000.0,0.00019197,2]
[350092194,1737619840348,-846.59,0.00019197,2]
[350092195,1737619840359,-500.0,0.00019197,2]
[350092196,1737619840369,-1528.2,0.00019197,2]
[350092197,1737619840414,-1415.22,0.00019197,2]
[350092198,1737619840423,-1763.0,0.000192,2]
[350092199,1737619840432,-379971.69104077,0.000192,15]
[350092200,1737619840624,-84734.96457493,0.000192,15]
[350092201,1737619840634,-3817.7,0.000192,2]
[350092202,1737619840644,-151.0,0.000192,2]
[350092203,1737619840653,-2014.24,0.000192,2]
[350092204,1737619840664,-1000.0,0.000192,2]
[350092205,1737619840674,-151.0,0.000192,2]
[350092206,1737619840683,-500.0,0.00019203,2]
[350092207,1737619840694,-500.0,0.00019203,2]
[350092208,1737619840703,-500.0,0.00019203,2]
[350092209,1737619840712,-500.0,0.00019203,2]
[350092210,1737619840721,-500.0,0.00019203,2]
[350092211,1737619840731,-450.5227,0.00019203,2]
[350092212,1737619840740,-1000.0,0.00019203,2]
[350092213,1737619840748,-1000.0,0.00019203,2]
[350092214,1737619840758,-594.5553,0.00019203,2]
[350092215,1737619840767,-159236.0,0.0001926,2]
[350092216,1737619840777,-500.0,0.00019273,2]
[350092217,1737619840786,-500.0,0.00019273,2]
[350092218,1737619840795,-572.42,0.00019273,2]
[350092219,1737619840804,-739.04,0.00019273,2]
[350092220,1737619840813,-500.0,0.00019273,2]
[350092221,1737619840823,-500.0,0.00019273,2]
[350092222,1737619840832,-725.33,0.00019273,2]
[350092223,1737619840841,-1232.21,0.00019273,2]
[350092224,1737619840850,-1462.46,0.00019273,2]
[350092225,1737619840859,-774.79,0.00019273,2]
[350092226,1737619840868,-1222.82,0.00019273,2]
[350092227,1737619840877,-1411.73,0.00019273,2]
[350092228,1737619840886,-1678.33,0.00019273,2]
[350092229,1737619840895,-1180.34,0.00019273,2]
[350092230,1737619840904,-2166.61,0.00019273,2]
[350092231,1737619840913,-1204.43,0.00019273,2]
[350092232,1737619840923,-765.38,0.00019273,2]
[350092233,1737619840932,-610.52,0.00019273,2]
[350092234,1737619840940,-888.16,0.00019273,2]
[350092235,1737619840949,-669.82,0.00019273,2]
[350092236,1737619840959,-500.0,0.00019273,2]
[350092237,1737619840968,-1508.42,0.00019273,2]
[350092238,1737619840979,-500.0,0.00019273,2]
[350092239,1737619840988,-500.0,0.00019273,2]
[350092240,1737619840998,-500.0,0.00019273,2]
[350092241,1737619841008,-769.75,0.00019273,2]
[350092242,1737619841017,-1342.22,0.00019273,2]
[350092243,1737619841027,-791.59,0.00019273,2]
[350092244,1737619841036,-877.57,0.00019273,2]
[350092245,1737619841045,-587.08,0.00019273,2]
[350092246,1737619841054,-839.12,0.00019273,2]
[350092247,1737619841063,-1300.29,0.00019273,2]
[350092248,1737619841072,-658.2,0.00019273,2]
[350092249,1737619841082,-500.0,0.00019273,2]
[350092250,1737619841093,-671.52,0.00019273,2]
[350092251,1737619841104,-875.85,0.00019273,2]
[350092252,1737619841116,-633.82,0.00019273,2]
[350092253,1737619841128,-554.17,0.00019273,2]
[350092254,1737619841138,-1326.15,0.00019273,2]
[350092255,1737619841148,-500.0,0.00019273,2]
[350092256,1737619841158,-1658.16,0.00019273,2]
[350092257,1737619841168,-1045.12,0.00019273,2]
[350092258,1737619841177,-500.0,0.00019273,2]
[350092259,1737619841188,-1192.4,0.00019273,2]
[350092260,1737619841197,-500.0,0.00019273,2]
[350092261,1737619841209,-1335.72,0.00019273,2]
[350092262,1737619841219,-500.0,0.00019273,2]
[350092263,1737619841228,-536.35,0.00019273,2]
[350092264,1737619841237,-686.73,0.00019273,2]
[350092265,1737619841246,-1606.99,0.00019273,2]
[350092266,1737619841255,-562.91430182,0.00019273,2]
[350092267,1737619841280,-337.90569818,0.00019273,2]
[350092268,1737619841289,-151.0,0.00019287,2]
[350092269,1737619841298,-235.813851,0.00019287,2]
[350092270,1737619841309,-235.813851,0.00019287,2]
[350092271,1737619841319,-151.0,0.00019287,2]
[350092272,1737619841331,-329.1788757,0.00019287,2]
[350092273,1737619841341,-329.1788757,0.00019287,2]
[350092274,1737619841350,-1213.70037071,0.00019287,2]
[350092275,1737619841362,-1003.06202029,0.00019287,2]
[350092276,1737619841422,-424.98499999,0.00019287,2]
[350092277,1737619841433,-667.37843438,0.00019287,2]
[350092278,1737619841444,-1414.99255693,0.00019287,2]
[350092279,1737619841453,-992.15835307,0.00019287,2]
[350092280,1737619841464,-418.54789703,0.00019287,2]
[350092281,1737619841476,-340.42922644,0.00019287,2]
[350092282,1737619841491,-2124.89781816,0.00019287,2]
[350092283,1737619841499,-306.33852602,0.00019287,2]
[350092284,1737619841510,-530.69259837,0.00019287,2]
[350092285,1737619841522,-19428.01533041,0.00019287,2]
[350092286,1737619841533,-16627.0166028,0.00019287,2]
[350092287,1737619841542,-1819.4590593,0.00019287,2]
[350092288,1737619841551,-1719.9182479,0.00019287,2]
[350092289,1737619841561,-151.0,0.00019287,2]
[350092290,1737619841570,-151.0,0.00019299,2]
[350092291,1737619841579,-235.813851,0.00019299,2]
[350092292,1737619841588,-235.813851,0.00019299,2]
[350092293,1737619841597,-500.0,0.00019299,2]
[350092294,1737619841606,-113906.35570423,0.000193,3]
[350092307,1737619842717,-318.27089731,0.00018999,2]
[350092314,1737619842770,-181.72910269,0.00018999,2]
[350092316,1737619842781,-151.0,0.00019178,2]
[350092318,1737619842790,-151.0,0.000192,2]
[350092320,1737619842799,-377.20286085,0.00019273,2]
[350092321,1737619842811,-122.79713915,0.00019273,2]
[350092322,1737619842820,-151.0,0.00019287,2]
[350092323,1737619842830,-375.03231268,0.000193,3]
[350092330,1737619842929,-5006.42799973,0.000193,3]
[350092332,1737619842941,-6454.40000004,0.000193,3]
[350092335,1737619842952,-10150.43195917,0.000193,3]
[350092342,1737619845597,-5076.14737511,0.000188,2]
[350092343,1737619845609,-378.70802489,0.000188,2]
[350092344,1737619845619,-151.0,0.00019178,2]
[350092345,1737619845629,-4001.89197511,0.000193,3]
[350092346,1737619845651,-3902.62856891,0.000193,3]
[350092347,1737619845662,-155923.55602063,0.000193,3]
[350092348,1737619845760,-9359.46219701,0.000193,3]
[350092349,1737619845866,-59747.51062158,0.000193,3]
[350092350,1737619845920,-20509.4865232,0.000193,3]
[350092351,1737619845975,-419.48451,0.000193,3]
[350092352,1737619845989,-328.68581002,0.000193,3]
[350092353,1737619846000,-806.00377132,0.000193,3]
[350092354,1737619846029,-3769.92781801,0.000193,3]
[350092355,1737619846040,-3404.9,0.000193,3]
[350092364,1737619900566,196.35,0.00012329,2]
[350092365,1737619905183,447.10045919,0.00016612,2]
[350092367,1737620342269,-450.63,0.00010137,2]
[350092368,1737620378029,157.21097324,0.00011045,2]
[350092369,1737620587241,-175.14,0.00014626,2]
[350092370,1737620587269,-550.0,0.00015,2]
[350092371,1737620587297,-580.11954081,0.00016612,2]
[350092372,1737620587324,-450.63,0.00016813,2]
[350092373,1737620587353,-232.38829754,0.000169,2]
[350092374,1737620587380,-600.0,0.00017,2]
[350092375,1737620587406,-232.38829753,0.00017323,2]
[350092376,1737620587436,-500.0,0.00017342,2]
[350092377,1737620587463,-158.045666,0.00017423,2]
[350092378,1737620587489,-518.5106,0.00017524,2]
[350092379,1737620587514,-213.4173,0.00017524,2]
[350092380,1737620587542,-230.46,0.00017559,2]
[350092381,1737620587569,-155.0,0.00017561,2]
[350092382,1737620587595,-250.0,0.00017597,2]
[350092383,1737620587622,-515.66,0.000176,2]
[350092384,1737620587650,-1000.0,0.00017613,2]
[350092385,1737620587678,-2196.41,0.00017624,2]
[350092386,1737620587703,-1500.0,0.00017642,2]
[350092387,1737620587729,-250.0,0.00017696,2]
[350092388,1737620587755,-3500.0,0.000178,30]
[350092389,1737620587781,-158.23,0.00017823,30]
[350092390,1737620587806,-948.13,0.00017882,2]
[350092391,1737620587832,-459.58,0.00018172,2]
[350092392,1737620587858,-459.58,0.00018177,2]
[350092393,1737620587889,-459.58,0.00018181,2]
[350092394,1737620587915,-459.58,0.00018186,2]
[350092395,1737620587944,-459.58,0.00018191,2]
[350092396,1737620587971,-459.58,0.00018196,2]
[350092397,1737620587999,-459.58,0.00018201,2]
[350092398,1737620588026,-459.58,0.00018205,2]
[350092399,1737620588054,-459.58,0.0001821,2]
[350092400,1737620588081,-459.58,0.00018215,2]
[350092401,1737620588108,-459.58,0.0001822,2]
[350092402,1737620588135,-459.58,0.00018225,2]
[350092403,1737620588168,-459.58,0.00018229,2]
[350092404,1737620588199,-459.58,0.00018234,2]
[350092405,1737620588227,-459.58,0.00018239,2]
[350092406,1737620588255,-459.58,0.00018244,2]
[350092407,1737620588282,-169.64,0.00018247,2]
[350092408,1737620588312,-459.58,0.00018248,2]
[350092409,1737620588345,-459.58,0.00018253,2]
[350092410,1737620588375,-459.58,0.00018258,2]
[350092411,1737620588402,-150.0,0.0001826,2]
[350092412,1737620588432,-459.58,0.00018263,2]
[350092413,1737620588459,-846.31,0.00018267,2]
[350092414,1737620588487,-749.041,0.00018313,2]
[350092415,1737620588513,-175.8,0.00018438,2]
[350092416,1737620588539,-150.0,0.00018712,2]
[350092417,1737620588566,-150.0,0.00018712,2]
[350092418,1737620588592,-4031.0,0.00018727,2]
[350092419,1737620588792,-1027.22,0.00018876,2]
[350092420,1737620588820,-5000.0,0.000189,2]
[350092421,1737620588861,-430.3178249,0.00018905,2]
[350092422,1737620588895,-622.824514,0.00018913,2]
[350092423,1737620588925,-1138.13,0.00018998,2]
[350092424,1737620588956,-2080.48,0.00018998,2]
[350092425,1737620588985,-867.37,0.00018998,2]
[350092426,1737620589014,-2102.39,0.00018998,2]
[350092427,1737620589044,-1204.71,0.00018998,2]
[350092428,1737620589073,-791.92,0.00018998,2]
[350092429,1737620589101,-735.28,0.00018998,2]
[350092430,1737620589130,-1745.31,0.00018998,2]
[350092431,1737620589159,-3358.12,0.00018998,2]
[350092432,1737620589189,-617.61,0.00018998,2]
[350092433,1737620589218,-500.0,0.00018998,2]
[350092434,1737620589245,-847.72,0.00018998,2]
[350092435,1737620589273,-5555.05,0.00018998,2]
[350092436,1737620589300,-500.0,0.00018998,2]
[350092437,1737620589329,-1326.19,0.00018998,2]
[350092438,1737620589360,-500.0,0.00018998,2]
[350092439,1737620589389,-500.0,0.00018998,2]
[350092440,1737620589423,-500.0,0.00018998,2]
[350092441,1737620589453,-622.54,0.00018998,2]
[350092442,1737620589481,-500.0,0.00018998,2]
[350092443,1737620589510,-618.87,0.00018998,2]
[350092444,1737620589539,-942.21,0.00018998,2]
[350092445,1737620589568,-1092.08,0.00018998,2]
[350092446,1737620589598,-522.59,0.00018998,2]
[350092447,1737620589627,-1868.24,0.00018998,2]
[350092448,1737620589657,-3737.8,0.00018998,2]
[350092449,1737620589689,-676.66,0.00018998,2]
[350092450,1737620589717,-615.6,0.00018998,2]
[350092451,1737620589748,-862.66,0.00018998,2]
[350092452,1737620589777,-606.7068305,0.00018998,2]
[350092453,1737620589811,-634.72,0.00018998,2]
[350092454,1737620589840,-1776.6244,0.00018999,2]
[350092455,1737620589869,-500.0,0.00018999,2]
[350092456,1737620589898,-540.06,0.00018999,2]
[350092457,1737620589930,-500.0,0.00018999,2]
[350092458,1737620589958,-502.36,0.00018999,2]
[350092459,1737620589988,-526.0,0.00018999,2]
[350092460,1737620590019,-500.0,0.00018999,2]
[350092461,1737620590048,-500.0,0.00018999,2]
[350092462,1737620590077,-500.0,0.00018999,2]
[350092463,1737620590107,-660.08,0.00018999,2]
[350092464,1737620590141,-500.0,0.00018999,2]
[350092465,1737620590176,-500.0,0.00018999,2]
[350092466,1737620590207,-500.0,0.00018999,2]
[350092467,1737620590235,-500.0,0.00018999,2]
[350092468,1737620590263,-500.0,0.00018999,2]
[350092469,1737620590291,-500.0,0.00018999,2]
[350092470,1737620590319,-591.96,0.00018999,2]
[350092471,1737620590348,-563.14,0.00018999,2]
[350092472,1737620590376,-500.0,0.00018999,2]
[350092473,1737620590403,-610.92,0.00018999,2]
[350092474,1737620590434,-506.68,0.00018999,2]
[350092475,1737620590461,-660.89,0.00018999,2]
[350092476,1737620590490,-500.0,0.00018999,2]
[350092477,1737620590517,-500.0,0.00018999,2]
[350092478,1737620590544,-500.0,0.00018999,2]
[350092479,1737620590572,-500.0,0.00018999,2]
[350092480,1737620590600,-500.0,0.00018999,2]
[350092481,1737620590627,-500.0,0.00018999,2]
[350092482,1737620590654,-500.0,0.00018999,2]
[350092483,1737620590684,-500.0,0.00018999,2]
[350092484,1737620590711,-500.0,0.00018999,2]
[350092485,1737620590738,-508.2982675,0.00018999,2]
[350092486,1737620590766,-500.0,0.00018999,2]
[350092487,1737620590794,-500.0,0.00018999,2]
[350092488,1737620590822,-500.0,0.00018999,2]
[350092489,1737620590849,-500.0,0.00018999,2]
[350092490,1737620590876,-500.0,0.00018999,2]
[350092491,1737620590904,-500.0,0.00018999,2]
[350092492,1737620590933,-500.0,0.00018999,2]
[350092493,1737620590960,-500.0,0.00018999,2]
[350092494,1737620590988,-504.56,0.00018999,2]
[350092495,1737620591015,-500.0,0.00018999,2]
[350092496,1737620591044,-587.7906165,0.00018999,2]
[350092497,1737620591071,-481.79552049,0.00018999,2]
[350092498,1737620591101,-500.0,0.00018999,2]
[350092499,1737620591130,-500.0,0.00018999,2]
[350092500,1737620591159,-500.0,0.00018999,2]
[350092501,1737620591190,-539.06,0.00018999,2]
[350092502,1737620591218,-886.29,0.00018999,2]
[350092503,1737620591247,-966.92,0.00018999,2]
[350092504,1737620591274,-557.43531474,0.00018999,2]
[350092505,1737620591300,-500.0,0.00018999,2]
[350092506,1737620591330,-500.0,0.00018999,2]
[350092507,1737620591364,-1000.0,0.00018999,2]
[350092508,1737620591393,-289.06687656,0.00018999,2]
[350092509,1737620591423,-832.14,0.00018999,2]
[350092510,1737620591454,-500.0,0.00018999,2]
[350092511,1737620591484,-500.0,0.00018999,2]
[350092512,1737620591513,-500.0,0.00018999,2]
[350092513,1737620591541,-500.0,0.00018999,2]
[350092514,1737620591569,-1342.47,0.00018999,2]
[350092515,1737620591598,-500.0,0.00018999,2]
[350092516,1737620591628,-1377.08,0.00018999,2]
[350092517,1737620591657,-500.0,0.00018999,2]
[350092518,1737620591687,-500.0,0.00018999,2]
[350092519,1737620591715,-500.0,0.00018999,2]